fUSD/lending_fUSD_20250814
["ID","MTS","AMOUNT","RATE_DAILY","PERIOD"]
[379201217,1755185478233,-400.0,0.00027534,2]
[379201218,1755185478242,-3592.83,0.00027534,2]
[379201219,1755185478252,-1167.94,0.00027534,2]
[379201220,1755185478262,-400.0,0.00027534,2]
[379201221,1755185478271,-400.0,0.00027534,2]
[379201222,1755185478280,-543.09,0.00027534,2]
[379201223,1755185478290,-400.0,0.00027534,2]
[379201224,1755185478300,-400.0,0.00027534,2]
[379201225,1755185478309,-400.0,0.00027534,2]
[379201226,1755185478318,-400.0,0.00027534,2]
[379201227,1755185478327,-400.0,0.00027534,2]
[379201228,1755185478336,-400.0,0.00027534,2]
[379201229,1755185478346,-1103.19,0.00027534,2]
[379201230,1755185478354,-400.0,0.00027534,2]
[379201231,1755185478364,-904.57,0.00027534,2]
[379201232,1755185478373,-1927.69,0.00027534,2]
[379201233,1755185478382,-2661.37,0.00027534,2]
[379201234,1755185478392,-400.0,0.00027534,2]
[379201235,1755185478405,-400.0,0.00027534,2]
[379201236,1755185478415,-1139.76,0.00027534,2]
[379201237,1755185478425,-1304.49,0.00027534,2]
[379201238,1755185478435,-400.0,0.00027534,2]
[379201239,1755185478444,-1641.15,0.00027534,2]
[379201240,1755185478454,-247.8412294,0.00027534,2]
[379201241,1755185478464,-3415.94,0.00027534,2]
[379201242,1755185478474,-1021.49,0.00027534,2]
[379201243,1755185478483,-712.2,0.00027534,2]
[379201244,1755185478492,-1151.23,0.00027534,2]
[379201245,1755185478501,-400.0,0.00027534,2]
[379201246,1755185478511,-842.84,0.00027534,2]
[379201247,1755185478520,-1149.42,0.00027534,2]
[379201248,1755185478530,-812.08,0.00027534,2]
[379201249,1755185478539,-697.11,0.00027534,2]
[379201250,1755185478548,-151.0,0.00027534,7]
[379201251,1755185478558,-915.56,0.00027534,2]
[379201252,1755185478568,-400.0,0.00027534,2]
[379201253,1755185478577,-1398.5,0.00027534,2]
[379201254,1755185478586,-2033.51,0.00027534,2]
[379201255,1755185478595,-995.39,0.00027534,2]
[379201256,1755185478604,-725.5,0.00027534,2]
[379201257,1755185478614,-151.0,0.00027534,7]
[379201258,1755185478623,-151.0,0.00027534,7]
[379201259,1755185478632,-561.3,0.00027534,2]
[379201260,1755185478641,-151.0,0.00027534,7]
[379201261,1755185478655,-151.0,0.00027534,7]
[379201262,1755185478664,-656.12,0.00027534,2]
[379201263,1755185478674,-400.0,0.00027534,2]
[379201264,1755185478683,-400.0,0.00027534,2]
[379201265,1755185478692,-2155.92,0.00027534,2]
[379201266,1755185478701,-1141.99,0.00027534,2]
[379201267,1755185478711,-400.0,0.00027534,2]
[379201268,1755185478720,-400.0,0.00027534,2]
[379201269,1755185478730,-406.89,0.00027534,2]
[379201270,1755185478739,-452.34480595,0.00027534,2]
[379201271,1755185478748,-407.89206795,0.00027534,2]
[379201272,1755185478758,-400.0,0.00027534,2]
[379201273,1755185478767,-409.82214878,0.00027534,2]
[379201274,1755185478776,-1177.51,0.00027534,2]
[379201275,1755185478786,-985.81,0.00027534,2]
[379201276,1755185478795,-400.0,0.00027534,2]
[379201277,1755185478805,-502.96,0.00027534,2]
[379201278,1755185478817,-975.14,0.00027534,2]
[379201279,1755185478827,-429.03,0.00027534,2]
[379201280,1755185478836,-400.0,0.00027534,2]
[379201281,1755185478845,-966.6,0.00027534,2]
[379201282,1755185478855,-291.14393168,0.00027534,2]
[379201283,1755185478864,-2147.72,0.00027534,2]
[379201284,1755185478874,-408.62178631,0.00027534,2]
[379201285,1755185478883,-400.0,0.00027534,2]
[379201286,1755185478893,-400.0,0.00027534,2]
[379201287,1755185478903,-400.0,0.00027534,2]
[379201288,1755185478913,-400.0,0.00027534,2]
[379201289,1755185478923,-863.92,0.00027534,2]
[379201290,1755185478932,-746.14,0.00027534,2]
[379201291,1755185478941,-400.0,0.00027534,2]
[379201292,1755185478951,-892.64,0.00027534,2]
[379201293,1755185478960,-1118.96,0.00027534,2]
[379201294,1755185478969,-2015.03,0.00027534,2]
[379201295,1755185478978,-400.0,0.00027534,2]
[379201296,1755185478988,-400.0,0.00027534,2]
[379201297,1755185478997,-1965.52,0.00027534,2]
[379201298,1755185479007,-400.0,0.00027534,2]
[379201299,1755185479016,-2019.62,0.00027534,2]
[379201300,1755185479025,-400.0,0.00027534,2]
[379201301,1755185479035,-400.0,0.00027534,2]
[379201302,1755185479044,-400.0,0.00027534,2]
[379201303,1755185479053,-883.01,0.00027534,2]
[379201304,1755185479063,-400.0,0.00027534,2]
[379201305,1755185479072,-400.0,0.00027534,2]
[379201306,1755185479082,-1195.07,0.00027534,2]
[379201307,1755185479091,-400.0,0.00027534,2]
[379201308,1755185479101,-4694.06,0.00027534,2]
[379201309,1755185479110,-400.0,0.00027534,2]
[379201310,1755185479119,-400.0,0.00027534,2]
[379201311,1755185479132,-400.0,0.00027534,2]
[379201312,1755185479141,-435.26,0.00027534,2]
[379201313,1755185479152,-670.25,0.00027534,2]
[379201314,1755185479162,-582.84,0.00027534,2]
[379201315,1755185479174,-432.95,0.00027534,2]
[379201316,1755185479184,-814.15,0.00027534,2]
[379201317,1755185479194,-2239.205914,0.00027534,7]
[379201318,1755185479205,-2239.205914,0.00027534,7]
[379201319,1755185479215,-2919.01,0.00027534,2]
[379201320,1755185479225,-2239.205914,0.00027534,7]
[379201321,1755185479234,-2239.205914,0.00027534,7]
[379201322,1755185479244,-400.0,0.00027534,2]
[379201323,1755185479254,-400.0,0.00027534,2]
[379201324,1755185479264,-1068.16,0.00027534,2]
[379201325,1755185479274,-1779.37,0.00027534,2]
[379201326,1755185479285,-2239.205914,0.00027534,7]
[379201327,1755185479296,-1788.51,0.00027534,2]
[379201328,1755185479305,-2239.205914,0.00027534,7]
[379201329,1755185479315,-2239.205914,0.00027534,7]
[379201330,1755185479324,-2239.205914,0.00027534,7]
[379201331,1755185479334,-1009.91,0.00027534,2]
[379201332,1755185479344,-2937.87,0.00027534,2]
[379201333,1755185479353,-709.12,0.00027534,2]
[379201334,1755185479362,-448.55,0.00027534,2]
[379201335,1755185479372,-1266.11,0.00027534,2]
[379201336,1755185479381,-400.0,0.00027534,2]
[379201337,1755185479391,-400.0,0.00027534,2]
[379201338,1755185479402,-1737.48,0.00027534,2]
[379201339,1755185479411,-685.83,0.00027534,2]
[379201340,1755185479421,-400.0,0.00027534,2]
[379201341,1755185479430,-2063.92,0.00027534,2]
[379201342,1755185479440,-4646.19,0.00027534,2]
[379201343,1755185479450,-2942.31,0.00027534,2]
[379201344,1755185479460,-1223.1,0.00027534,2]
[379201345,1755185479470,-1007.08,0.00027534,2]
[379201346,1755185479479,-1927.33,0.00027534,2]
[379201347,1755185479488,-910.53,0.00027534,2]
[379201348,1755185479497,-1220.99,0.00027534,2]
[379201349,1755185479507,-836.87,0.00027534,2]
[379201350,1755185479517,-400.0,0.00027534,2]
[379201351,1755185479526,-400.0,0.00027534,2]
[379201352,1755185479536,-561.27,0.00027534,2]
[379201353,1755185479545,-400.0,0.00027534,2]
[379201354,1755185479555,-602.22,0.00027534,2]
[379201355,1755185479564,-400.0,0.00027534,2]
[379201356,1755185479573,-543.66,0.00027534,2]
[379201357,1755185479584,-400.0,0.00027534,2]
[379201358,1755185479594,-4302.08,0.00027534,2]
[379201359,1755185479604,-400.0,0.00027534,2]
[379201360,1755185479613,-1947.07,0.00027534,2]
[379201361,1755185479623,-2073.61,0.00027534,2]
[379201362,1755185479634,-2925.17,0.00027534,2]
[379201363,1755185479644,-400.0,0.00027534,2]
[379201364,1755185479663,-609.39,0.00027534,2]
[379201365,1755185479674,-400.0,0.00027534,2]
[379201366,1755185479684,-4202.312341,0.00027534,7]
[379201367,1755185479694,-4202.312341,0.00027534,7]
[379201368,1755185479704,-1261.95,0.00027534,2]
[379201369,1755185479714,-601.11,0.00027534,2]
[379201370,1755185479724,-440.56,0.00027534,2]
[379201371,1755185479733,-1067.57,0.00027534,2]
[379201372,1755185479743,-683.8,0.00027534,2]
[379201373,1755185479752,-400.0,0.00027534,2]
[379201374,1755185479761,-4202.312341,0.00027534,7]
[379201375,1755185479771,-4202.312341,0.00027534,7]
[379201376,1755185479781,-400.0,0.00027534,2]
[379201377,1755185479790,-400.0,0.00027534,2]
[379201378,1755185479800,-1886.64,0.00027534,2]
[379201379,1755185479810,-400.0,0.00027534,2]
[379201380,1755185479820,-876.09,0.00027534,2]
[379201381,1755185479830,-3399.56,0.00027534,2]
[379201382,1755185479839,-400.0,0.00027534,2]
[379201383,1755185479849,-1673.17,0.00027534,2]
[379201384,1755185479859,-400.0,0.00027534,2]
[379201385,1755185479869,-446.11,0.00027534,2]
[379201386,1755185479878,-1500.69,0.00027534,2]
[379201387,1755185479888,-2875.13,0.00027534,2]
[379201388,1755185479899,-505.65,0.00027534,2]
[379201389,1755185479910,-400.0,0.00027534,2]
[379201390,1755185479920,-400.0,0.00027534,2]
[379201391,1755185479929,-400.0,0.00027534,2]
[379201392,1755185479938,-400.0,0.00027534,2]
[379201393,1755185479948,-495.7,0.00027534,2]
[379201394,1755185479958,-400.0,0.00027534,2]
[379201395,1755185479967,-375.44904706,0.00027534,2]
[379201396,1755185479978,-427.96,0.00027534,2]
[379201397,1755185479987,-420.47,0.00027534,2]
[379201398,1755185479997,-869.92,0.00027534,2]
[379201399,1755185480006,-520.02,0.00027534,2]
[379201400,1755185480016,-400.0,0.00027534,2]
[379201401,1755185480025,-400.0,0.00027534,2]
[379201402,1755185480035,-955.46,0.00027534,2]
[379201403,1755185480044,-1767.72,0.00027534,2]
[379201404,1755185480054,-1837.81,0.00027534,2]
[379201405,1755185480063,-1838.44,0.00027534,2]
[379201406,1755185480073,-400.0,0.00027534,2]
[379201407,1755185480083,-1043.23,0.00027534,2]
[379201408,1755185480092,-6471.93,0.00027534,2]
[379201409,1755185480102,-400.0,0.00027534,2]
[379201410,1755185480112,-1699.42,0.00027534,2]
[379201411,1755185480122,-1499.54,0.00027534,2]
[379201412,1755185480137,-400.0,0.00027534,2]
[379201413,1755185480146,-400.0,0.00027534,2]
[379201414,1755185480160,-400.0,0.00027534,2]
[379201415,1755185480170,-1158.0,0.00027534,2]
[379201416,1755185480180,-1417.52,0.00027534,2]
[379201417,1755185480190,-4055.59,0.00027534,2]
[379201418,1755185480199,-400.0,0.00027534,2]
[379201419,1755185480210,-5260.64,0.00027534,2]
[379201420,1755185480219,-2032.85,0.00027534,2]
[379201421,1755185480229,-400.0,0.00027534,2]
[379201422,1755185480239,-1315.83,0.00027534,2]
[379201423,1755185480249,-400.0,0.00027534,2]
[379201424,1755185480259,-4504.75,0.00027534,2]
[379201425,1755185480268,-3006.36,0.00027534,2]
[379201426,1755185480278,-400.0,0.00027534,2]
[379201427,1755185480288,-452.07,0.00027534,2]
[379201428,1755185480298,-400.0,0.00027534,2]
[379201429,1755185480310,-400.0,0.00027534,2]
[379201430,1755185480319,-1647.08,0.00027534,2]
[379201431,1755185480329,-400.0,0.00027534,2]
[379201432,1755185480339,-2335.488269,0.00027534,7]
[379201433,1755185480348,-2335.488269,0.00027534,7]
[379201434,1755185480358,-2373.06,0.00027534,2]
[379201435,1755185480368,-400.0,0.00027534,2]
[379201436,1755185480377,-1732.49,0.00027534,2]
[379201437,1755185480387,-637.89,0.00027534,2]
[379201438,1755185480397,-400.0,0.00027534,2]
[379201439,1755185480410,-1303.2,0.00027534,2]
[379201440,1755185480421,-1797.23,0.00027534,2]
[379201441,1755185480431,-493.95,0.00027534,2]
[379201442,1755185480441,-1001.65,0.00027534,2]
[379201443,1755185480451,-2335.488269,0.00027534,7]
[379201444,1755185480460,-400.0,0.00027534,2]
[379201445,1755185480470,-2335.488269,0.00027534,7]
[379201446,1755185480481,-400.0,0.00027534,2]
[379201447,1755185480491,-1929.46,0.00027534,2]
[379201448,1755185480502,-400.0,0.00027534,2]
[379201449,1755185480511,-400.0,0.00027534,2]
[379201450,1755185480521,-405.72067032,0.00027534,2]
[379201451,1755185480531,-1166.31,0.00027534,2]
[379201452,1755185480541,-400.0,0.00027534,2]
[379201453,1755185480551,-2049.41,0.00027534,2]
[379201454,1755185480561,-400.0,0.00027534,2]
[379201455,1755185480571,-4465.37,0.00027534,2]
[379201456,1755185480581,-963.47,0.00027534,2]
[379201457,1755185480591,-948.84,0.00027534,2]
[379201458,1755185480601,-1408.02,0.00027534,2]
[379201459,1755185480610,-1530.82,0.00027534,2]
[379201460,1755185480619,-400.0,0.00027534,2]
[379201461,1755185480629,-400.0,0.00027534,2]
[379201462,1755185480639,-3046.31,0.00027534,2]
[379201463,1755185480653,-400.0,0.00027534,2]
[379201464,1755185480663,-261.50341476,0.00027534,2]
[379201465,1755185480674,-561.68,0.00027534,2]
[379201466,1755185480685,-400.0,0.00027534,2]
[379201467,1755185480695,-400.0,0.00027534,2]
[379201468,1755185480705,-447.53,0.00027534,2]
[379201469,1755185480715,-2962.88,0.00027534,2]
[379201470,1755185480724,-1003.23,0.00027534,2]
[379201471,1755185480734,-1209.98,0.00027534,2]
[379201472,1755185480744,-400.0,0.00027534,2]
[379201473,1755185480753,-875.45,0.00027534,2]
[379201474,1755185480763,-1083.08,0.00027534,2]
[379201475,1755185480773,-2840.9,0.00027534,2]
[379201476,1755185480783,-334.13,0.00027534,2]
[379201477,1755185480793,-1409.28,0.00027534,2]
[379201478,1755185480803,-1007.0,0.00027534,2]
[379201479,1755185480813,-1058.18,0.00027534,2]
[379201480,1755185480823,-400.0,0.00027534,2]
[379201481,1755185480833,-460.85,0.00027534,2]
[379201482,1755185480843,-400.0,0.00027534,2]
[379201483,1755185480853,-754.34,0.00027534,2]
[379201484,1755185480862,-231.96483,0.00027534,7]
[379201485,1755185480872,-231.96483,0.00027534,7]
[379201486,1755185480882,-400.0,0.00027534,2]
[379201487,1755185480892,-402.65,0.00027534,2]
[379201488,1755185480905,-400.0,0.00027534,2]
[379201489,1755185480915,-400.0,0.00027534,2]
[379201490,1755185480924,-930.3,0.00027534,2]
[379201491,1755185480934,-400.0,0.00027534,2]
[379201492,1755185480944,-231.96483,0.00027534,7]
[379201493,1755185480954,-1839.09,0.00027534,2]
[379201494,1755185480964,-400.0,0.00027534,2]
[379201495,1755185480974,-231.96483,0.00027534,7]
[379201496,1755185480983,-400.0,0.00027534,2]
[379201497,1755185480993,-400.0,0.00027534,2]
[379201498,1755185481003,-4005.22,0.00027534,2]
[379201499,1755185481013,-658.03,0.00027534,2]
[379201500,1755185481023,-1041.8,0.00027534,2]
[379201501,1755185481033,-400.0,0.00027534,2]
[379201502,1755185481042,-391.83226663,0.00027534,2]
[379201503,1755185481052,-3799.27,0.00027534,2]
[379201504,1755185481062,-420.935082,0.00027534,7]
[379201505,1755185481074,-420.935082,0.00027534,7]
[379201506,1755185481085,-1551.63,0.00027534,2]
[379201507,1755185481095,-1068.92,0.00027534,2]
[379201508,1755185481105,-275.76787945,0.00027534,2]
[379201509,1755185481115,-400.0,0.00027534,2]
[379201510,1755185481127,-400.0,0.00027534,2]
[379201511,1755185481141,-1866.08,0.00027534,2]
[379201512,1755185481155,-3896.3,0.00027534,2]
[379201513,1755185481164,-2005.64,0.00027534,2]
[379201514,1755185481175,-3279.08,0.00027534,2]
[379201515,1755185481186,-400.0,0.00027534,2]
[379201516,1755185481197,-863.03,0.00027534,2]
[379201517,1755185481208,-4281.06,0.00027534,2]
[379201518,1755185481218,-400.0,0.00027534,2]
[379201519,1755185481229,-420.935082,0.00027534,7]
[379201520,1755185481239,-821.06,0.00027534,2]
[379201521,1755185481250,-420.935082,0.00027534,7]
[379201522,1755185481260,-475.82,0.00027534,2]
[379201523,1755185481270,-400.0,0.00027534,2]
[379201524,1755185481279,-400.0,0.00027534,2]
[379201525,1755185481293,-400.0,0.00027534,2]
[379201526,1755185481309,-400.0,0.00027534,2]
[379201527,1755185481320,-400.0,0.00027534,2]
[379201528,1755185481330,-2879.37,0.00027534,2]
[379201529,1755185481339,-3840.08,0.00027534,2]
[379201530,1755185481349,-507.85,0.00027534,2]
[379201531,1755185481359,-298.11355425,0.00027534,2]
[379201532,1755185481368,-400.0,0.00027534,2]
[379201533,1755185481379,-400.0,0.00027534,2]
[379201534,1755185481513,-400.0,0.00027534,2]
[379201535,1755185481539,-400.0,0.00027534,2]
[379201536,1755185481549,-3303.45,0.00027534,2]
[379201537,1755185481560,-400.0,0.00027534,2]
[379201538,1755185481570,-407.67276022,0.00027534,2]
[379201539,1755185481581,-400.0,0.00027534,2]
[379201540,1755185481591,-2957.91,0.00027534,2]
[379201541,1755185481602,-959.07,0.00027534,2]
[379201542,1755185481612,-1920.4,0.00027534,2]
[379201543,1755185481622,-1509.08,0.00027534,2]
[379201544,1755185481631,-400.0,0.00027534,2]
[379201545,1755185481641,-467.44,0.00027534,2]
[379201546,1755185481651,-884.35,0.00027534,2]
[379201547,1755185481661,-400.0,0.00027534,2]
[379201548,1755185481671,-400.0,0.00027534,2]
[379201549,1755185481682,-561.64,0.00027534,2]
[379201550,1755185481691,-453.24,0.00027534,2]
[379201551,1755185481701,-2093.25,0.00027534,2]
[379201552,1755185481710,-405.1,0.00027534,2]
[379201553,1755185481719,-1526.68,0.00027534,2]
[379201554,1755185481729,-2633.16,0.00027534,2]
[379201555,1755185481738,-400.0,0.00027534,2]
[379201556,1755185481747,-400.0,0.00027534,2]
[379201557,1755185481757,-400.0,0.00027534,2]
[379201558,1755185481766,-400.0,0.00027534,2]
[379201559,1755185481775,-400.0,0.00027534,2]
[379201560,1755185481785,-987.67,0.00027534,2]
[379201561,1755185481795,-151.0,0.00027534,7]
[379201562,1755185481804,-400.0,0.00027534,2]
[379201563,1755185481814,-151.0,0.00027534,7]
[379201564,1755185481823,-421.01,0.00027534,2]
[379201565,1755185481833,-2469.29,0.00027534,2]
[379201566,1755185481842,-2560.07,0.00027534,2]
[379201567,1755185481851,-400.0,0.00027534,2]
[379201568,1755185481861,-519.85,0.00027534,2]
[379201569,1755185481870,-5522.79,0.00027534,2]
[379201570,1755185481880,-400.0,0.00027534,2]
[379201571,1755185481889,-1160.31,0.00027534,2]
[379201572,1755185481901,-923.18,0.00027534,2]
[379201573,1755185481910,-400.0,0.00027534,2]
[379201574,1755185481920,-1103.43,0.00027534,2]
[379201575,1755185481929,-1035.42,0.00027534,2]
[379201576,1755185481939,-1143.91,0.00027534,2]
[379201577,1755185481948,-588.77,0.00027534,2]
[379201578,1755185481957,-810.64,0.00027534,2]
[379201579,1755185481967,-2151.82,0.00027534,2]
[379201580,1755185481976,-400.0,0.00027534,2]
[379201581,1755185481986,-400.0,0.00027534,2]
[379201582,1755185481996,-400.0,0.00027534,2]
[379201583,1755185482005,-400.0,0.00027534,2]
[379201584,1755185482015,-1272.060599,0.00027534,7]
[379201585,1755185482024,-983.93,0.00027534,2]
[379201586,1755185482034,-1272.060599,0.00027534,7]
[379201587,1755185482045,-454.98,0.00027534,2]
[379201588,1755185482055,-400.0,0.00027534,2]
[379201589,1755185482064,-419.04787398,0.00027534,2]
[379201590,1755185482074,-400.0,0.00027534,2]
[379201591,1755185482084,-961.43,0.00027534,2]
[379201592,1755185482093,-400.0,0.00027534,2]
[379201593,1755185482103,-400.0,0.00027534,2]
[379201594,1755185482112,-1136.32,0.00027534,2]
[379201595,1755185482123,-1442.32,0.00027534,2]
[379201596,1755185482133,-491.89,0.00027534,2]
[379201597,1755185482144,-1272.060599,0.00027534,7]
[379201598,1755185482160,-400.0,0.00027534,2]
[379201599,1755185482179,-1272.060599,0.00027534,7]
[379201600,1755185482188,-490.67,0.00027534,2]
[379201601,1755185482198,-2582.25,0.00027534,2]
[379201602,1755185482208,-151.0,0.00027534,7]
[379201603,1755185482219,-4091.15,0.00027534,2]
[379201604,1755185482230,-400.0,0.00027534,2]
[379201605,1755185482240,-151.0,0.00027534,7]
[379201606,1755185482250,-400.0,0.00027534,2]
[379201607,1755185482260,-2000.0,0.00027534,30]
[379201608,1755185482270,-633.47,0.00027534,2]
[379201609,1755185482280,-400.0,0.00027534,2]
[379201610,1755185482289,-2280.38,0.00027534,2]
[379201611,1755185482300,-400.0,0.00027534,2]
[379201612,1755185482309,-2565.32,0.00027534,2]
[379201613,1755185482319,-400.0,0.00027534,2]
[379201614,1755185482329,-400.0,0.00027534,2]
[379201615,1755185482339,-1456.26,0.00027534,2]
[379201616,1755185482349,-307.323367,0.00027534,7]
[379201617,1755185482359,-1408.08,0.00027534,2]
[379201618,1755185482368,-400.0,0.00027534,2]
[379201619,1755185482378,-819.75,0.00027534,2]
[379201620,1755185482388,-400.0,0.00027534,2]
[379201621,1755185482398,-400.0,0.00027534,2]
[379201622,1755185482413,-307.323367,0.00027534,7]
[379201623,1755185482423,-307.323367,0.00027534,7]
[379201624,1755185482433,-151.0,0.00027534,7]
[379201625,1755185482442,-307.323367,0.00027534,7]
[379201626,1755185482452,-151.0,0.00027534,7]
[379201627,1755185482461,-3485.71,0.00027534,2]
[379201628,1755185482471,-2981.53,0.00027534,2]
[379201629,1755185482481,-307.323367,0.00027534,7]
[379201630,1755185482491,-307.323367,0.00027534,7]
[379201631,1755185482501,-307.323367,0.00027534,7]
[379201632,1755185482511,-151.0,0.00027534,7]
[379201633,1755185482520,-307.323367,0.00027534,7]
[379201634,1755185482531,-151.0,0.00027534,7]
[379201635,1755185482541,-1179.18,0.00027534,2]
[379201636,1755185482551,-498.76,0.00027534,2]
[379201637,1755185482560,-400.0,0.00027534,2]
[379201638,1755185482570,-1973.49,0.00027534,2]
[379201639,1755185482580,-396.71765,0.00027534,7]
[379201640,1755185482590,-400.0,0.00027534,2]
[379201641,1755185482600,-1014.78,0.00027534,2]
[379201642,1755185482610,-396.71765,0.00027534,7]
[379201643,1755185482619,-463.89,0.00027534,2]
[379201644,1755185482630,-396.71765,0.00027534,7]
[379201645,1755185482640,-402.15,0.00027534,2]
[379201646,1755185482649,-396.71765,0.00027534,7]
[379201647,1755185482667,-400.0,0.00027534,2]
[379201648,1755185482677,-3832.87,0.00027534,2]
[379201649,1755185482687,-465.21078133,0.00027534,2]
[379201650,1755185482696,-396.71765,0.00027534,7]
[379201651,1755185482706,-1947.68,0.00027534,2]
[379201652,1755185482716,-400.0,0.00027534,2]
[379201653,1755185482726,-5162.62,0.00027534,2]
[379201654,1755185482735,-4580.85,0.00027534,2]
[379201655,1755185482745,-396.71765,0.00027534,7]
[379201656,1755185482754,-400.0,0.00027534,2]
[379201657,1755185482764,-396.71765,0.00027534,7]
[379201658,1755185482775,-986.17,0.00027534,2]
[379201659,1755185482784,-396.71765,0.00027534,7]
[379201660,1755185482794,-2169.91,0.00027534,2]
[379201661,1755185482804,-400.0,0.00027534,2]
[379201662,1755185482813,-859.33,0.00027534,2]
[379201663,1755185482823,-400.0,0.00027534,2]
[379201664,1755185482833,-5110.1,0.00027534,2]
[379201665,1755185482842,-3758.15,0.00027534,2]
[379201666,1755185482852,-400.0,0.00027534,2]
[379201667,1755185482862,-899.07,0.00027534,2]
[379201668,1755185482871,-151.0,0.00027534,7]
[379201669,1755185482881,-155.488257,0.00027534,7]
[379201670,1755185482891,-1942.8,0.00027534,2]
[379201671,1755185482900,-588.99,0.00027534,2]
[379201672,1755185482913,-400.0,0.00027534,2]
[379201673,1755185482923,-650.22,0.00027534,2]
[379201674,1755185482932,-400.0,0.00027534,2]
[379201675,1755185482942,-801.25,0.00027534,2]
[379201676,1755185482951,-2427.29,0.00027534,2]
[379201677,1755185482961,-400.0,0.00027534,2]
[379201678,1755185482970,-2142.95,0.00027534,2]
[379201679,1755185482980,-1238.37,0.00027534,2]
[379201680,1755185482990,-400.0,0.00027534,2]
[379201681,1755185482999,-793.51,0.00027534,2]
[379201682,1755185483008,-1863.76,0.00027534,2]
[379201683,1755185483018,-674.59,0.00027534,2]
[379201684,1755185483029,-1125.57,0.00027534,2]
[379201685,1755185483038,-570.71,0.00027534,2]
[379201686,1755185483048,-1827.21,0.00027534,2]
[379201687,1755185483058,-297.33446219,0.00027534,2]
[379201688,1755185483068,-1482.17,0.00027534,2]
[379201689,1755185483078,-1046.22,0.00027534,2]
[379201690,1755185483088,-400.0,0.00027534,2]
[379201691,1755185483099,-2505.57,0.00027534,2]
[379201692,1755185483109,-479.81819047,0.00027534,2]
[379201693,1755185483119,-2470.21,0.00027534,2]
[379201694,1755185483133,-400.0,0.00027534,2]
[379201695,1755185483150,-1004.61,0.00027534,2]
[379201696,1755185483164,-400.0,0.00027534,2]
[379201697,1755185483175,-400.0,0.00027534,2]
[379201698,1755185483185,-400.0,0.00027534,2]
[379201699,1755185483195,-1166.99,0.00027534,2]
[379201700,1755185483205,-400.0,0.00027534,2]
[379201701,1755185483217,-647.3,0.00027534,2]
[379201702,1755185483227,-2554.54,0.00027534,2]
[379201703,1755185483237,-2602.07,0.00027534,2]
[379201704,1755185483247,-1043.08,0.00027534,2]
[379201705,1755185483257,-2714.34,0.00027534,2]
[379201706,1755185483266,-2292.32,0.00027534,2]
[379201707,1755185483276,-400.0,0.00027534,2]
[379201708,1755185483288,-5115.09,0.00027534,2]
[379201709,1755185483299,-1132.54,0.00027534,2]
[379201710,1755185483308,-914.15,0.00027534,2]
[379201711,1755185483319,-400.0,0.00027534,2]
[379201712,1755185483329,-1759.27,0.00027534,2]
[379201713,1755185483339,-2303.36,0.00027534,2]
[379201714,1755185483351,-400.0,0.00027534,2]
[379201715,1755185483361,-491.78285041,0.00027534,2]
[379201716,1755185483370,-1318.86,0.00027534,2]